bitfinex/quotes_SOLUSD_20251208
["timestamp","ask_amount","ask_price","bid_price","bid_amount"]
[1765211680037,48.68249109,136.33,136.32,0.2]
[1765211687873,16.84994492,136.34,136.32,0.88]
[1765211688281,24.31848443,136.34,136.32,0.2]
[1765211689272,15.52368217,136.33,136.32,0.2]
[1765211689477,14.80368217,136.33,136.32,0.2]
[1765211690275,15.52368217,136.33,136.32,0.2]
[1765211690652,14.80368217,136.33,136.32,0.2]
[1765211690855,24.33362709,136.33,136.32,0.2]
[1765211691654,23.61362709,136.33,136.32,0.2]
[1765211695363,24.26362709,136.33,136.32,0.2]
[1765211696684,19.93339266,136.33,136.32,0.2]
[1765211699462,19.93339266,136.33,136.32,1e-08]
[1765211700584,11.94825,136.28,136.27,0.2]
[1765211700886,16.84994492,136.28,136.27,0.86]
[1765211701577,27.32608387,136.28,136.27,0.2]
[1765211703294,28.00608387,136.28,136.27,0.2]
[1765211704586,28.00608387,136.28,136.27,1e-08]
[1765211705161,27.32608387,136.28,136.27,1e-08]
[1765211705981,28.00608387,136.28,136.27,1e-08]
[1765211708484,24.86777879,136.28,136.27,1e-08]
[1765211708801,28.00608387,136.28,136.27,1e-08]
[1765211709679,9.48994492,136.27,136.26,1e-08]
[1765211709871,12.62825,136.27,136.26,1e-08]
[1765211710073,15.56910211,136.27,136.26,1e-08]
[1765211710879,22.90747445,136.27,136.26,1e-08]
[1765211711101,23.90747444,136.27,136.26,1e-08]
[1765211711295,25.11880892,136.25,136.24,0.2]
[1765211711601,36.297114,136.25,136.24,0.2]
[1765211711820,36.977114,136.25,136.24,0.2]
[1765211712019,16.308864,136.21,136.2,0.2]
[1765211712198,36.297114,136.21,136.2,0.2]
[1765211712388,36.977114,136.21,136.2,0.2]
[1765211712713,39.91883122,136.21,136.2,0.2]
[1765211712895,46.58043609,136.21,136.2,0.2]
[1765211713095,43.63871887,136.21,136.2,0.2]
[1765211713296,44.31871887,136.21,136.2,0.2]
[1765211713495,43.63871887,136.21,136.2,0.2]
[1765211713991,43.63871887,136.21,136.2,0.86]
[1765211713992,36.297114,136.21,136.2,0.86]
[1765211714298,43.63871887,136.21,136.2,0.2]
[1765211715120,44.31871887,136.21,136.19,0.2]
[1765211715329,44.31871887,136.21,136.18,0.2]
[1765211715330,12.62825,136.2,136.18,0.2]
[1765211715495,19.98825,136.19,136.18,0.2]
[1765211715819,8.80994492,136.15,136.13,0.2]
[1765211716031,16.308864,136.16,136.13,0.2]
[1765211716032,19.98825,136.14,136.13,0.2]
[1765211716715,33.83880892,136.14,136.13,0.2]
[1765211716891,36.977114,136.14,136.13,0.2]
[1765211717198,25.11880892,136.1,136.07,0.2]
[1765211717409,8.04,136.09,136.07,0.2]
[1765211717720,11.17830508,136.09,136.07,0.86]
[1765211717915,11.94825,136.08,136.07,0.2]
[1765211718418,28.257114,136.08,136.07,0.2]
[1765211718599,15.76655508,136.08,136.07,0.2]
[1765211718798,12.62825,136.08,136.07,0.2]
[1765211719201,23.11517353,136.08,136.07,0.2]
[1765211719404,32.53008877,136.08,136.07,0.2]
[1765211719918,36.297114,136.08,136.07,0.2]
[1765211720133,43.64573245,136.08,136.07,0.2]
[1765211720320,31.15517353,136.08,136.07,0.2]
[1765211720819,32.37870301,136.08,136.07,0.2]
[1765211721124,31.69870301,136.08,136.07,0.2]
[1765211721599,40.50742737,136.08,136.07,0.91]
[1765211721915,48.00756701,136.08,136.07,0.2]
[1765211722795,53.56103584,136.08,136.07,0.2]
[1765211722997,54.26103584,136.08,136.07,0.2]
[1765211723917,53.56103584,136.08,136.07,0.2]
[1765211724493,8.04,136.08,136.07,0.91]
[1765211724893,13.05360847,136.12,136.07,21.31276699]
[1765211725121,7.34523477,136.15,136.1,13.05360847]
[1765211725291,7.34523477,136.15,136.11,7.34699875]
[1765211725601,13.05360847,136.13,136.11,0.71]
[1765211725922,13.05360847,136.13,136.07,13.25360847]
[1765211725923,46.21241739,136.12,136.09,0.71]
[1765211726120,8.04,136.11,136.09,0.71]
[1765211726324,8.04,136.11,136.09,8.05800763]
[1765211726529,8.04,136.11,136.09,0.71]
[1765211726723,8.04,136.11,136.1,0.71]
[1765211727213,8.04,136.11,136.1,8.05753857]
[1765211727829,16.84994492,136.13,136.1,8.05753857]
[1765211728111,16.84994492,136.13,136.11,0.71]
[1765211728310,8.04,136.13,136.11,0.71]
[1765211728517,8.04,136.13,136.11,13.76360847]
[1765211728718,8.04,136.13,136.11,0.71]
[1765211728925,8.04,136.13,136.12,0.71]
[1765211729754,8.04,136.15,136.12,21.11006747]
[1765211729911,8.04,136.15,136.13,13.05360847]
[1765211730243,13.05360847,136.18,136.13,13.05360847]
[1765211730244,20.3970111,136.18,136.13,13.76360847]
[1765211730530,20.3970111,136.18,136.15,13.05360847]
[1765211730531,24.348864,136.18,136.15,13.05360847]
[1765211730836,8.04,136.18,136.15,13.05360847]
[1765211731033,8.04,136.18,136.16,0.71]
[1765211731438,8.04,136.18,136.16,13.76360847]
[1765211731624,8.04,136.18,136.17,0.71]
[1765211732847,8.04,136.18,136.17,13.76360847]
[1765211733213,8.80994492,136.21,136.17,13.76360847]
[1765211733413,8.80994492,136.21,136.18,13.76360847]
[1765211733414,8.04,136.21,136.18,13.76360847]
[1765211733614,8.80994492,136.24,136.2,7.3421439]
[1765211733819,8.04,136.23,136.21,0.71]
[1765211734312,8.04,136.23,136.21,13.76360847]
[1765211734736,8.04,136.23,136.22,0.71]
[1765211735339,8.80994492,136.25,136.22,0.71]
[1765211735544,16.84994492,136.25,136.22,8.05088611]
[1765211736030,37.94325072,136.25,136.2,0.71]
[1765211736230,55.59187457,136.25,136.21,0.71]
[1765211736737,56.29187457,136.25,136.21,0.71]
[1765211736936,55.59187457,136.25,136.21,0.71]
[1765211737519,13.05360847,136.24,136.21,0.71]
[1765211737716,8.04,136.23,136.19,20.39593145]
[1765211737961,8.04,136.23,136.21,0.71]
[1765211738537,8.04,136.23,136.21,8.05156775]
[1765211738723,8.04,136.23,136.21,0.71]
[1765211738926,8.04,136.23,136.22,0.71]
[1765211739243,8.04,136.23,136.21,0.71]
[1765211740141,8.04,136.23,136.21,21.10520092]
[1765211740531,8.04,136.23,136.22,0.71]
[1765211741956,8.04,136.23,136.21,0.71]
[1765211742469,8.80994492,136.22,136.18,13.05360847]
[1765211742649,8.04,136.21,136.18,0.71]
[1765211743861,8.04,136.21,136.2,7.3421439]
[1765211744058,8.04,136.23,136.2,21.10575237]
[1765211744250,8.04,136.23,136.21,0.71]
[1765211744864,21.79360847,136.23,136.19,8.05248535]
[1765211745243,22.56355339,136.22,136.17,13.05360847]
[1765211745455,8.04,136.21,136.17,13.76360847]
[1765211745675,8.04,136.21,136.17,7.34374867]
[1765211745879,15.38173465,136.21,136.18,0.71]
[1765211746169,8.04,136.21,136.18,8.05312108]
[1765211746573,8.04,136.21,136.19,0.71]
[1765211747156,15.38167236,136.21,136.19,0.71]
[1765211747350,8.04,136.21,136.19,0.71]
[1765211748050,8.04,136.21,136.19,8.05247192]
[1765211749553,8.04,136.21,136.2,13.76360847]
[1765211749956,8.04,136.21,136.2,21.10575237]
[1765211750368,8.80994492,136.24,136.2,21.10575237]
[1765211750550,21.09360847,136.23,136.19,7.34248354]
[1765211750970,21.79360847,136.23,136.19,8.05248354]
[1765211751161,8.74,136.23,136.19,8.05248354]
[1765211751473,8.74,136.23,136.2,0.71]
[1765211751680,21.79360847,136.23,136.19,7.34248354]
[1765211751864,21.79360847,136.23,136.19,8.05248354]
[1765211752261,8.04,136.23,136.2,8.0520169]
[1765211753776,119.88058963,136.23,136.2,0.71]
[1765211753972,120.58058963,136.23,136.19,7.34249918]
[1765211754175,112.54,136.23,136.21,7.34160487]
[1765211754564,112.54,136.23,136.21,8.05160487]
[1765211755399,112.54,136.23,136.2,7.34191649]
[1765211755601,112.54,136.23,136.2,8.05191649]
[1765211756908,112.54,136.23,136.21,0.71]
[1765211757681,112.54,136.23,136.2,7.34191649]
[1765211757886,112.54,136.23,136.2,8.05191649]
[1765211758296,0.7,136.22,136.19,7.34254981]
[1765211758484,8.04,136.21,136.19,7.34254981]
[1765211758698,8.04,136.21,136.19,0.71]
[1765211759207,8.04,136.21,136.19,8.05266242]
[1765211759785,8.04,136.21,136.2,0.7]
[1765211760116,8.04,136.21,136.19,8.04266242]
[1765211761129,8.04,136.21,136.2,0.7]
[1765211761335,0.1,136.27,136.2,13.75360847]
[1765211761491,0.1,136.27,136.24,13.05360847]
[1765211761687,0.1,136.27,136.23,13.05360847]
[1765211762007,8.90994492,136.27,136.24,0.7]
[1765211762195,8.74,136.26,136.22,0.7]
[1765211762398,13.05360847,136.24,136.19,39.45297843]
[1765211762727,8.04,136.23,136.2,0.7]
[1765211762885,8.04,136.23,136.21,13.05360847]
[1765211763086,8.04,136.25,136.22,7.34106592]
[1765211763285,22.56355339,136.24,136.2,8.04190919]
[1765211763508,8.04,136.23,136.2,8.04190919]
[1765211763722,8.04,136.23,136.21,8.04149099]
[1765211763895,8.04,136.23,136.22,0.7]
[1765211764086,0.1,136.27,136.22,13.75360847]
[1765211764087,20.49217655,136.27,136.22,13.75360847]
[1765211764297,8.04,136.26,136.22,13.75360847]
[1765211764498,8.04,136.26,136.23,0.7]
[1765211765100,8.04,136.26,136.23,8.04013937]
[1765211765802,8.04,136.26,136.24,0.7]
[1765211766626,8.04,136.26,136.22,7.34093014]
[1765211766627,0.7,136.25,136.22,7.34093014]
[1765211766810,0.7,136.25,136.2,32.10870918]
[1765211767128,8.04,136.24,136.22,7.34075585]
[1765211767832,8.04,136.24,136.22,8.04075585]
[1765211768511,8.04,136.24,136.22,20.39436432]
[1765211768825,8.04,136.24,136.23,0.7]
[1765211769025,8.04,136.24,136.22,21.09436432]
[1765211769224,8.04,136.24,136.22,8.04075585]
[1765211769727,8.04,136.26,136.23,0.7]
[1765211769915,8.04,136.26,136.23,13.75360847]
[1765211770305,8.04,136.26,136.24,0.7]
[1765211770927,8.04,136.26,136.24,13.75360847]
[1765211771410,0.1,136.27,136.26,7.3389109]
[1765211771620,0.1,136.27,136.26,20.39251937]
[1765211771822,0.1,136.27,136.26,8.0389109]
[1765211772134,8.90994492,136.27,136.24,0.7]
[1765211772340,9.60994492,136.27,136.23,20.39382794]
[1765211772514,9.60994492,136.27,136.23,21.09382794]
[1765211772720,13.75360847,136.26,136.22,7.34093807]
[1765211772919,8.04,136.25,136.22,8.04093807]
[1765211773320,8.04,136.25,136.23,7.3403124]
[1765211773744,8.04,136.25,136.22,8.04084646]
[1765211774924,8.04,136.25,136.24,13.05360847]
[1765211775133,8.14,136.27,136.24,13.75360847]
[1765211775330,8.14,136.27,136.25,0.7]
[1765211775527,8.14,136.27,136.26,7.3389109]
[1765211775845,0.1,136.27,136.26,20.39251937]
[1765211776064,21.15074546,136.35,136.26,21.09251937]
[1765211776065,6.80967999,136.34,136.26,21.09251937]
[1765211776266,8.04,136.33,136.29,13.05360847]
[1765211776560,8.74,136.33,136.29,13.05360847]
[1765211776764,8.04,136.33,136.29,13.75360847]
[1765211776923,8.04,136.33,136.3,13.75360847]
[1765211777126,8.04,136.33,136.3,13.05360847]
[1765211777329,8.04,136.33,136.3,13.75360847]
[1765211777653,8.04,136.33,136.32,20.38928922]
[1765211779023,32.55198346,136.37,136.32,21.08928922]
[1765211779225,8.04,136.36,136.34,13.05360847]
[1765211779547,8.04,136.36,136.33,21.08850225]
[1765211779750,8.04,136.36,136.34,13.05360847]
[1765211779928,8.04,136.36,136.34,13.75360847]
[1765211780739,8.04,136.36,136.35,13.05360847]
[1765211782023,8.04,136.36,136.34,13.75360847]
[1765211782273,8.04,136.36,136.33,20.38837057]
[1765211782559,8.04,136.36,136.33,21.09837057]
[1765211782719,0.67,136.35,136.31,13.76360847]
[1765211783118,0.67,136.35,136.31,21.09950389]
[1765211784035,8.00418189,136.35,136.31,21.09950389]
[1765211784453,8.00418189,136.35,136.31,13.05360847]
[1765211784454,7.33418189,136.35,136.31,13.05360847]
[1765211784641,7.33418189,136.35,136.29,18.34265195]
[1765211784642,22.53355339,136.34,136.26,0.71]
[1765211784836,16.27981002,136.32,136.26,7.4698651]
[1765211785152,8.80994492,136.3,136.25,7.4698651]
[1765211785454,8.80994492,136.3,136.25,8.1798651]
[1765211785455,8.71,136.29,136.25,8.1798651]
[1765211786058,8.71,136.29,136.22,8.04]
[1765211786059,16.8179234,136.28,136.24,7.33964608]
[1765211786231,0.67,136.27,136.24,7.33964608]
[1765211786721,16.1479234,136.28,136.24,7.33964608]
[1765211786722,8.80994492,136.28,136.25,7.33942488]
[1765211786949,0.67,136.27,136.24,14.80964087]
[1765211787456,0.67,136.27,136.23,15.52018093]
[1765211787860,8.04,136.26,136.23,15.52018093]
[1765211788179,8.04,136.26,136.23,14.81018093]
[1765211788476,8.04,136.26,136.23,15.52018093]
[1765211789173,0.67,136.25,136.22,7.34096855]
[1765211789957,0.67,136.25,136.2,8.1798651]
[1765211790148,0.67,136.25,136.21,8.05152998]
[1765211790348,8.00955826,136.25,136.21,8.05152998]
[1765211790543,9.47994492,136.24,136.2,7.34195281]
[1765211790846,8.04,136.23,136.2,8.1798651]
[1765211791044,8.04,136.25,136.22,7.4698651]
[1765211791274,8.04,136.25,136.23,7.4698651]
[1765211791448,8.04,136.25,136.24,7.4698651]
[1765211791660,8.04,136.27,136.24,7.4698651]
[1765211791873,8.04,136.27,136.24,8.1798651]
[1765211792377,8.04,136.27,136.25,7.33944954]
[1765211792952,0.67,136.26,136.23,7.4698651]
[1765211793153,16.04839546,136.27,136.23,15.5201823]
[1765211793366,8.04,136.27,136.25,7.4698651]
[1765211793565,16.308864,136.29,136.26,8.1798651]
[1765211793566,24.348864,136.29,136.26,8.1798651]
[1765211793776,8.04,136.29,136.26,8.1798651]
[1765211793974,8.04,136.3,136.27,7.4698651]
[1765211794150,8.04,136.3,136.27,8.1798651]
[1765211794354,8.04,136.3,136.28,0.71]
[1765211795063,8.04,136.3,136.28,8.1798651]
[1765211795387,8.04,136.3,136.28,7.4698651]
[1765211795599,8.04,136.3,136.26,15.5187394]
[1765211795600,16.04697827,136.3,136.26,15.5187394]
[1765211795760,16.04697827,136.3,136.23,26.39064243]
[1765211795761,0.67,136.29,136.25,14.80895467]
[1765211795964,8.80994492,136.28,136.24,14.80966389]
[1765211796164,8.04,136.27,136.24,14.80966389]
[1765211796395,8.71,136.27,136.23,7.4698651]
[1765211796691,8.71,136.27,136.23,8.1798651]
[1765211797690,16.04872066,136.27,136.23,8.1798651]
[1765211797885,16.04872066,136.27,136.22,14.81044696]
[1765211797886,9.47994492,136.26,136.22,14.81044696]
[1765211798090,9.47994492,136.26,136.22,15.52044696]
[1765211798795,9.47994492,136.26,136.21,14.8112662]
[1765211798796,0.67,136.25,136.21,14.8112662]
[1765211799003,8.04,136.24,136.21,14.8112662]
[1765211799183,8.04,136.24,136.2,7.34170663]
[1765211799386,0.67,136.23,136.19,7.3422641]
[1765211799903,8.01082138,136.23,136.18,15.5229285]
[1765211800270,0.67,136.22,136.18,8.0530634]
[1765211800471,8.04,136.21,136.18,15.5229285]
[1765211801494,8.04,136.21,136.19,8.1798651]
[1765211801692,42.12791734,136.25,136.19,8.1798651]
[1765211801693,8.04,136.23,136.2,7.4698651]
[1765211801913,8.04,136.23,136.21,7.4698651]
[1765211802223,8.04,136.23,136.21,8.1798651]
[1765211803030,8.04,136.25,136.22,7.4698651]
[1765211803225,8.04,136.25,136.22,15.52040189]
[1765211803920,8.04,136.25,136.22,14.81040189]
[1765211804125,0.67,136.24,136.21,7.34157846]
[1765211805228,8.04,136.25,136.21,14.81144356]
[1765211805526,8.04,136.25,136.22,8.1798651]
[1765211806024,104.5,136.28,136.24,7.4698651]
[1765211806196,8.04,136.27,136.24,7.4698651]
[1765211806402,8.04,136.27,136.24,8.1798651]
[1765211806803,8.04,136.27,136.25,8.1798651]
[1765211807311,105.17,136.32,136.26,8.1798651]
[1765211807513,16.84994492,136.31,136.27,7.4698651]
[1765211808027,17.51994492,136.31,136.27,8.1798651]
[1765211808237,8.04,136.31,136.28,8.1798651]
[1765211808618,8.71,136.31,136.27,7.4698651]
[1765211808931,8.71,136.31,136.27,8.1798651]
[1765211809135,8.71,136.31,136.28,7.33783387]
[1765211809340,0.67,136.3,136.26,7.4698651]
[1765211809508,0.67,136.3,136.26,8.1798651]
[1765211809937,0.67,136.3,136.27,7.4698651]
[1765211810244,0.67,136.3,136.26,8.1798651]
[1765211810413,8.80994492,136.29,136.23,19.06086495]
[1765211810607,8.04,136.28,136.25,7.33921393]
[1765211810817,16.27981002,136.27,136.22,14.81059941]
[1765211811035,0.67,136.26,136.22,14.81059941]
[1765211811332,8.04,136.25,136.21,14.81129055]
[1765211811633,8.04,136.25,136.22,7.34105947]
[1765211811935,8.7,136.25,136.22,7.34105947]
[1765211812230,8.04,136.25,136.22,14.81092457]
[1765211812445,8.04,136.25,136.22,15.52092457]
[1765211814234,8.04,136.25,136.22,7.34105947]
[1765211814426,8.7,136.25,136.22,7.34105947]
[1765211815324,8.04,136.25,136.23,0.71]
[1765211815517,8.04,136.25,136.24,7.33998825]
[1765211816012,8.04,136.25,136.24,8.04998825]
[1765211816517,8.04,136.25,136.24,15.51985335]
[1765211816826,8.04,136.27,136.24,15.51985335]
[1765211818337,0.66,136.26,136.24,7.33998825]
[1765211818538,8.04,136.27,136.24,7.33998825]
[1765211818744,8.7,136.27,136.24,7.33998825]
[1765211819642,8.04,136.27,136.25,8.1598651]
[1765211820020,8.04,136.27,136.26,7.3389109]
[1765211820816,8.04,136.27,136.25,15.49909382]
[1765211821240,24.36618592,136.29,136.26,0.69]
[1765211821241,8.04,136.29,136.26,0.69]
[1765211821423,8.04,136.3,136.26,8.1598651]
[1765211822024,8.04,136.3,136.27,7.33837234]
[1765211822539,8.76,136.3,136.27,7.33837234]
[1765211823843,8.04,136.3,136.27,8.02837234]
[1765211824450,8.04,136.3,136.29,7.4698651]
[1765211824649,8.04,136.32,136.29,7.4698651]
[1765211825054,8.04,136.32,136.29,8.1598651]
[1765211825555,0.72,136.31,136.27,7.33837234]
[1765211825729,8.80994492,136.3,136.26,7.3388396]
[1765211825930,8.04,136.29,136.25,14.80909546]
[1765211826237,0.72,136.28,136.25,14.80909546]
[1765211826850,8.05788969,136.28,136.24,14.80969208]
[1765211827055,8.05788969,136.28,136.24,7.33982698]
[1765211827939,8.05788969,136.28,136.24,15.49969208]
[1765211828155,9.52994492,136.27,136.23,7.34035271]
[1765211828457,8.04,136.26,136.22,7.34089866]
[1765211828631,8.76,136.26,136.22,7.34089866]
[1765211828935,8.76,136.26,136.22,15.50076376]
[1765211829149,8.04,136.26,136.22,33.16342856]
[1765211829469,8.04,136.26,136.23,8.1598651]
[1765211829634,16.09896208,136.26,136.22,8.03089866]
[1765211830041,0.72,136.25,136.22,8.03089866]
[1765211830368,0.72,136.25,136.2,18.35480183]
[1765211830685,8.80994492,136.24,136.2,7.34196108]
[1765211830831,8.04,136.23,136.2,7.34196108]
[1765211831034,8.04,136.23,136.2,8.03196108]
[1765211831561,8.76,136.23,136.2,7.34196108]
[1765211832286,16.99981002,136.22,136.16,26.52019437]
[1765211832491,16.99981002,136.22,136.17,7.34327928]
[1765211832664,16.99981002,136.22,136.17,0.69]
[1765211832860,0.72,136.21,136.18,7.34289421]
[1765211833082,8.04,136.2,136.18,7.34289421]
[1765211833279,8.04,136.2,136.17,0.69]
[1765211833475,8.04,136.2,136.15,0.69]
[1765211833476,16.2298651,136.2,136.15,0.69]
[1765211833995,16.2298651,136.2,136.16,7.34411499]
[1765211834414,0.72,136.19,136.16,7.34411499]
[1765211834571,8.1898651,136.19,136.14,8.1598651]
[1765211834891,8.80994492,136.18,136.14,8.03537975]
[1765211835094,17.028864,136.22,136.17,7.4698651]
[1765211835280,8.04,136.21,136.18,7.4698651]
[1765211835666,8.04,136.21,136.18,8.1598651]
[1765211836070,23.65006231,136.22,136.18,0.69]
[1765211836271,25.068864,136.22,136.18,0.69]
[1765211836891,25.068864,136.22,136.19,7.34268301]
[1765211837290,32.41010301,136.22,136.18,15.50299757]
[1765211837498,8.04,136.22,136.19,8.1598651]
[1765211838296,0.72,136.27,136.21,7.4698651]
[1765211838503,16.84994492,136.26,136.22,7.4698651]
[1765211838803,16.84994492,136.26,136.22,14.81047955]
[1765211839106,17.56994492,136.26,136.22,15.50047955]
[1765211839609,8.80994492,136.24,136.19,14.81220351]
[1765211839824,8.04,136.23,136.2,7.34207178]
[1765211840181,8.76,136.23,136.2,7.34207178]
[1765211840812,8.04,136.23,136.21,0.69]
[1765211841000,112.54,136.25,136.22,7.4698651]
[1765211841382,112.54,136.25,136.22,8.1498651]
[1765211841990,112.54,136.25,136.22,7.4698651]
[1765211842194,9.49994492,136.24,136.2,7.34207178]
[1765211842486,9.49994492,136.24,136.2,15.49193688]
[1765211842692,9.49994492,136.24,136.21,7.4698651]
[1765211843511,8.80994492,136.24,136.21,15.49132764]
[1765211843722,112.54,136.25,136.22,8.1498651]
[1765211844018,112.54,136.25,136.23,7.4698651]
[1765211844223,112.54,136.25,136.23,8.1498651]
[1765211844518,8.04,136.28,136.24,8.1498651]
[1765211844719,8.04,136.28,136.26,7.4698651]
[1765211845095,8.04,136.28,136.25,8.1498651]
[1765211845399,8.73,136.28,136.24,7.4698651]
[1765211845804,9.49994492,136.27,136.22,8.1498651]
[1765211846009,9.49994492,136.27,136.22,15.49056473]
[1765211846181,0.69,136.26,136.22,15.49056473]
[1765211846383,8.04,136.25,136.22,7.34069963]
[1765211846604,8.04,136.25,136.22,14.81056473]
[1765211846921,8.04,136.25,136.2,13.01690431]
[1765211846922,0.69,136.24,136.2,13.01690431]
[1765211847144,0.69,136.24,136.19,13.69690431]
[1765211847308,0.69,136.24,136.2,7.34176408]
[1765211847506,8.80994492,136.24,136.21,13.01690431]
[1765211847847,8.04,136.25,136.22,13.01690431]
[1765211848059,8.04,136.25,136.23,7.34036325]
[1765211849117,8.04,136.25,136.22,7.34087349]
[1765211849332,8.73,136.25,136.22,7.34087349]
[1765211850111,15.37959886,136.25,136.21,7.34137604]
[1765211850344,9.49994492,136.24,136.2,20.35859738]
[1765211850636,9.49994492,136.24,136.21,7.34152736]
[1765211850844,8.04,136.25,136.23,13.01690431]
[1765211851154,8.04,136.27,136.24,13.69690431]
[1765211851351,8.04,136.27,136.25,13.01690431]
[1765211851512,8.04,136.27,136.25,13.69690431]
[1765211851714,8.04,136.29,136.26,13.69690431]
[1765211852218,0.69,136.35,136.28,13.01690431]
[1765211852415,8.04,136.34,136.31,13.01690431]
[1765211852646,13.11690431,136.37,136.33,13.01690431]
[1765211852647,8.04,136.35,136.33,13.01690431]
[1765211852836,8.04,136.35,136.31,13.01690431]
[1765211853022,8.04,136.35,136.32,13.01690431]
[1765211853440,8.73,136.35,136.32,13.01690431]
[1765211854016,8.73,136.35,136.32,20.3525554]
[1765211854212,8.04,136.35,136.3,0.68]
[1765211854417,16.06433435,136.35,136.31,20.35279647]
[1765211854643,0.69,136.34,136.29,13.01690431]
[1765211854964,8.80994492,136.33,136.28,20.35436433]
[1765211855256,8.73,136.32,136.28,7.33746002]
[1765211855550,8.73,136.32,136.29,7.3372362]
[1765211856235,8.04,136.32,136.29,20.35414051]
[1765211856436,8.04,136.32,136.29,21.03414051]
[1765211856742,8.73,136.32,136.29,20.35414051]
[1765211858934,8.73,136.32,136.29,21.03414051]
[1765211859124,104.5,136.33,136.31,13.01690431]
[1765211859327,8.04,136.35,136.32,13.01690431]
[1765211859745,8.04,136.35,136.33,13.01690431]
[1765211860043,8.04,136.35,136.34,13.01690431]
[1765211860541,0.1,136.37,136.34,20.35150897]
[1765211860748,8.14,136.37,136.35,13.01690431]
[1765211861454,8.14,136.37,136.36,0.68]
[1765211861622,8.14,136.37,136.35,13.69690431]
[1765211862244,8.83,136.37,136.34,20.35150897]
[1765211863447,8.83,136.37,136.36,13.01690431]
[1765211863448,8.14,136.37,136.36,13.01690431]
[1765211863857,0.1,136.37,136.36,13.01690431]
[1765211864262,0.1,136.37,136.36,13.69690431]
[1765211864468,0.1,136.37,136.36,21.0304332]
[1765211865370,1e-08,136.37,136.36,21.0304332]
[1765211865946,1e-08,136.37,136.36,20.3504332]
[1765211866146,1e-08,136.37,136.36,7.33352889]
[1765211866368,1e-08,136.37,136.36,13.01690431]
[1765211868066,1e-08,136.37,136.36,13.69690431]
[1765211868642,0.69000001,136.37,136.35,20.35080967]
[1765211868842,0.69000001,136.37,136.35,13.01690431]
[1765211869044,0.69000001,136.37,136.35,7.33399423]
[1765211869293,1e-08,136.37,136.35,20.35089854]
[1765211869454,1e-08,136.37,136.33,19.01728967]
[1765211869663,0.69000001,136.37,136.34,7.33457968]
[1765211871075,0.69000001,136.37,136.34,20.35148399]
[1765211871272,1e-08,136.37,136.34,21.02148399]
[1765211871867,0.68000001,136.37,136.34,20.35148399]
[1765211872065,0.68000001,136.37,136.34,7.33457968]
[1765211872583,8.04,136.36,136.34,7.33457968]
[1765211873056,8.72,136.36,136.34,7.33457968]
[1765211873883,0.68,136.35,136.33,7.33494963]
[1765211874083,8.72,136.36,136.33,7.33494963]
[1765211874290,8.04,136.36,136.34,13.68690431]
[1765211874485,8.04,136.36,136.35,13.01690431]
[1765211874787,8.04,136.36,136.35,21.02097105]
[1765211876385,1e-08,136.37,136.35,21.02097105]
[1765211876573,1e-08,136.37,136.36,13.01690431]
[1765211878690,1e-08,136.37,136.36,21.0204332]
[1765211881193,1e-08,136.41,136.39,16.308864]
[1765211881372,1e-08,136.41,136.4,13.70690431]
[1765211882678,1e-08,136.41,136.4,34.05518691]
[1765211882878,1e-08,136.41,136.4,42.86513183]
[1765211884983,0.1,136.46,136.45,13.01690431]
[1765211885497,0.1,136.46,136.45,13.70690431]
[1765211886313,0.1,136.48,136.45,13.70690431]
[1765211886517,18.3,136.59,136.47,29.32576831]
[1765211886704,7.32135227,136.59,136.56,13.01690431]
[1765211886889,0.68,136.58,136.56,13.01690431]
[1765211887082,0.68,136.58,136.54,13.01690431]
[1765211887286,0.68,136.58,136.53,20.34113757]